bitfinex/quotes_SOLUSD_20251009
["timestamp","ask_amount","ask_price","bid_price","bid_amount"]
[1759976877951,1.31394183,226.88,226.84,0.71]
[1759976878286,0.67,226.9,226.85,0.71]
[1759976878452,0.67,226.92,226.86,0.71]
[1759976878655,31.48,226.91,226.86,0.71]
[1759976878853,0.67,226.92,226.87,5.11781064]
[1759976879061,31.48,226.92,226.88,0.71]
[1759976879279,0.5,226.9,226.88,0.71]
[1759976879987,0.5,226.9,226.86,4.40799652]
[1759976880154,0.5,226.9,226.86,5.11799652]
[1759976880473,0.5,226.9,226.87,20.8]
[1759976880972,1.98394183,226.89,226.84,20.8]
[1759976881179,0.67,226.88,226.84,20.8]
[1759976881371,33.46394183,226.87,226.82,0.71]
[1759976881603,32.79394183,226.87,226.82,0.71]
[1759976882079,31.48,226.87,226.83,4.40858792]
[1759976882279,31.48,226.87,226.84,0.71]
[1759976882455,31.48,226.87,226.83,36.23005774]
[1759976882655,31.48,226.87,226.83,25.20858792]
[1759976882859,1.98394183,226.86,226.8,4.40898748]
[1759976883060,1.98394183,226.86,226.78,0.71]
[1759976883061,1.31394183,226.84,226.78,5.1194063]
[1759976883266,1.98394183,226.84,226.78,5.1194063]
[1759976883465,35.88788479,226.87,226.76,0.71]
[1759976883669,1.31394183,226.8,226.73,10.87647521]
[1759976883864,32.79394183,226.8,226.73,10.87647521]
[1759976884055,0.5,226.9,226.8,20.8]
[1759976884255,31.48,226.89,226.81,0.71]
[1759976885777,31.48,226.89,226.82,31.67647521]
[1759976886061,31.48,226.89,226.84,4.40839358]
[1759976886264,32.17,226.89,226.84,4.40839358]
[1759976886569,31.48,226.89,226.85,0.67]
[1759976887081,31.48,226.89,226.84,4.40839358]
[1759976887383,32.17,226.89,226.84,4.40839358]
[1759976887591,1.31394183,226.88,226.83,4.4085086]
[1759976887758,0.69,226.87,226.83,4.4085086]
[1759976888078,31.48,226.89,226.83,5.0785086]
[1759976888261,31.48,226.89,226.83,16.09997842]
[1759976888466,31.54,226.9,226.84,11.54647521]
[1759976888662,31.54,226.9,226.85,0.67]
[1759976888862,31.54,226.9,226.86,0.67]
[1759976889963,13.72449433,226.93,226.86,0.67]
[1759976890169,31.52,226.92,226.87,4.40781064]
[1759976890371,0.5,226.91,226.87,4.40781064]
[1759976890777,0.5,226.91,226.88,0.67]
[1759976890978,31.81338954,227.0,226.88,0.67]
[1759976890979,5.09546184,227.0,226.9,20.8]
[1759976891181,33.52394183,226.99,226.9,21.47]
[1759976891384,1.31394183,226.96,226.9,20.8]
[1759976891684,0.69,226.96,226.9,20.8]
[1759976892186,0.69,226.96,226.91,4.40703362]
[1759976893693,1.31394183,226.93,226.88,20.8]
[1759976893887,0.69,226.92,226.88,20.8]
[1759976894188,2.00394183,226.92,226.88,20.8]
[1759976894388,1.31394183,226.91,226.87,4.40766661]
[1759976894588,1.31394183,226.89,226.83,0.67]
[1759976894778,1.31394183,226.89,226.83,4.4085732]
[1759976894779,1.31394183,226.88,226.83,4.4085732]
[1759976894978,1.31394183,226.87,226.83,4.4085732]
[1759976895671,2.50394183,226.88,226.82,25.20878229]
[1759976895873,0.5,226.88,226.82,25.87878229]
[1759976896270,0.5,226.88,226.82,25.20878229]
[1759976896472,0.5,226.88,226.83,0.67]
[1759976896695,0.5,226.88,226.84,0.67]
[1759976896914,0.5,226.88,226.85,0.67]
[1759976897787,0.5,226.88,226.82,31.82195573]
[1759976897992,0.5,226.88,226.82,32.49195573]
[1759976899197,0.5,226.88,226.83,4.40858792]
[1759976899391,0.5,226.88,226.84,0.67]
[1759976899581,0.5,226.88,226.81,0.67]
[1759976901192,0.5,226.88,226.82,4.40878229]
[1759976903698,6.22156401,226.88,226.83,0.67]
[1759976903996,6.91156401,226.88,226.83,0.67]
[1759976904993,0.69,226.87,226.8,16.10209875]
[1759976905180,5.09787941,226.87,226.8,5.07917107]
[1759976905383,1.31394183,226.86,226.8,5.07917107]
[1759976905770,37.87182124,226.87,226.8,5.07917107]
[1759976906594,32.77394183,226.87,226.81,0.67]
[1759976906900,0.5,226.88,226.83,20.8]
[1759976907081,0.5,226.88,226.84,0.67]
[1759976907281,0.5,226.88,226.85,20.8]
[1759976907483,0.5,226.88,226.86,0.67]
[1759976907678,0.5,226.88,226.87,0.67]
[1759976909698,0.5,226.88,226.87,5.07781064]
[1759976910397,0.69,226.99,226.91,20.8]
[1759976910591,31.46,226.98,226.92,0.67]
[1759976911803,31.46,226.98,226.93,4.40664522]
[1759976911998,32.15,226.98,226.93,4.40664522]
[1759976912190,31.46,226.98,226.94,0.67]
[1759976912398,31.46,226.98,226.95,0.67]
[1759976912597,31.46,226.98,226.96,20.8]
[1759976912788,31.46,226.98,226.96,21.47]
[1759976913176,31.46,226.98,226.97,0.67]
[1759976913580,0.69,227.02,226.97,0.67]
[1759976914000,0.69,227.02,226.97,5.07569344]
[1759976914203,0.69,227.02,226.97,4.40569344]
[1759976915296,0.69,227.02,226.97,5.07569344]
[1759976916311,5.71846279,227.04,226.98,0.66]
[1759976916496,31.44,227.03,226.98,0.66]
[1759976916690,1.31394183,227.04,226.97,4.40569344]
[1759976916905,31.44,227.03,226.99,0.66]
[1759976917285,1.31394183,227.04,226.99,5.06532441]
[1759976917485,2.01394183,227.04,226.99,5.06532441]
[1759976918100,16.13363893,227.05,226.99,5.06532441]
[1759976918101,13.04325928,227.05,226.99,5.06532441]
[1759976918882,11.72931745,227.05,227.0,0.66]
[1759976919085,0.2,227.05,227.01,0.66]
[1759976919284,0.2,227.05,227.02,10.87647521]
[1759976919501,0.2,227.05,227.04,10.87647521]
[1759976919700,0.31533237,227.08,227.04,10.87647521]
[1759976919701,0.31533237,227.08,227.07,31.67647521]
[1759976920197,0.31533237,227.08,227.07,32.33647521]
[1759976920502,0.31533237,227.08,227.07,45.28420624]
[1759976921502,0.31533237,227.08,227.07,49.68813454]
[1759976922609,0.2,227.1,227.08,10.87647521]
[1759976922802,0.2,227.1,227.08,11.97684864]
[1759976923013,0.2,227.1,227.09,11.53647521]
[1759976923207,0.2,227.1,227.09,42.97647521]
[1759976923609,0.2,227.1,227.09,47.38001565]
[1759976925116,1e-08,227.1,227.09,47.38001565]
[1759976925416,0.2,227.13,227.09,47.38001565]
[1759976925417,1e-08,227.11,227.1,10.87647521]
[1759976925600,0.2,227.14,227.13,36.07924014]
[1759976925798,0.76,227.25,227.13,36.51951663]
[1759976925799,1e-08,227.19,227.13,36.51951663]
[1759976925999,1e-08,227.24,227.18,31.67647521]
[1759976926196,0.1,227.25,227.23,31.67647521]
[1759976926197,1e-08,227.25,227.23,31.67647521]
[1759976926428,0.2,227.29,227.27,31.67647521]
[1759976926722,0.2,227.29,227.27,63.13647521]
[1759976926920,1e-08,227.29,227.28,10.87647521]
[1759976927125,1e-08,227.29,227.28,11.58647521]
[1759976927615,1e-08,227.29,227.28,15.98633441]
[1759976927809,1e-08,227.29,227.28,19.46635341]
[1759976928208,1e-08,227.29,227.28,50.92635341]
[1759976929298,1e-08,227.29,227.28,50.90635341]
[1759976930102,0.2,227.41,227.36,10.87647521]
[1759976930297,0.2,227.41,227.39,20.8]
[1759976930523,0.2,227.41,227.39,52.22]
[1759976931024,0.2,227.41,227.4,15.27401258]
[1759976931224,0.2,227.43,227.4,15.27401258]
[1759976931225,0.2,227.43,227.42,10.87647521]
[1759976931430,0.66,227.55,227.46,31.67647521]
[1759976931597,0.66,227.55,227.51,20.8]
[1759976932034,0.66,227.54,227.51,20.8]
[1759976932202,0.66,227.53,227.51,20.8]
[1759976932401,0.66,227.52,227.51,20.8]
[1759976933029,3.46721821,227.56,227.51,20.8]
[1759976933523,7.8616915,227.56,227.5,20.8]
[1759976933718,7.8616915,227.56,227.47,20.8]
[1759976933719,3.46721821,227.53,227.47,20.8]
[1759976933919,4.39447329,227.56,227.47,20.8]
[1759976934145,3.46721821,227.49,227.37,10.99524675]
[1759976934322,3.46721821,227.47,227.37,10.99524675]
[1759976934518,3.46721821,227.47,227.39,10.87647521]
[1759976935123,0.66,227.46,227.39,15.27414278]
[1759976935525,0.66,227.48,227.42,20.8]
[1759976935924,4.12721821,227.48,227.42,20.8]
[1759976936514,0.66,227.47,227.42,20.8]
[1759976936708,3.46721821,227.47,227.42,20.8]
[1759976937029,3.46721821,227.47,227.36,0.71]
[1759976937030,3.46721821,227.43,227.34,10.87647521]
[1759976937203,3.46721821,227.41,227.34,10.87647521]
[1759976937402,4.12721821,227.41,227.34,10.87647521]
[1759976937606,3.46721821,227.4,227.31,10.87647521]
[1759976937839,15.38799735,227.45,227.3,0.71]
[1759976937840,3.46721821,227.38,227.3,0.71]
[1759976938010,5.06103659,227.36,227.29,4.39966562]
[1759976938210,5.06103659,227.36,227.3,20.8]
[1759976938512,5.72103659,227.35,227.27,0.71]
[1759976938707,5.06103659,227.32,227.23,0.71]
[1759976938935,5.06103659,227.31,227.23,0.71]
[1759976939115,5.06103659,227.31,227.26,20.8]
[1759976939321,5.72103659,227.3,227.24,4.40063369]
[1759976939645,5.06103659,227.27,227.21,31.5]
[1759976939931,4.39931179,227.31,227.21,31.5]
[1759976939932,0.66,227.33,227.24,20.8]
[1759976940130,5.72103659,227.33,227.25,10.87647521]
[1759976940438,0.66,227.37,227.3,20.8]
[1759976940642,10.99248596,227.43,227.3,20.8]
[1759976940643,5.06103659,227.34,227.3,20.8]
[1759976940930,5.72103659,227.33,227.3,20.8]
[1759976941230,0.66,227.33,227.3,20.8]
[1759976942014,5.06103659,227.34,227.3,20.8]
[1759976942226,5.72103659,227.34,227.3,25.19944888]
[1759976942813,5.06103659,227.33,227.3,25.19944888]
[1759976943018,0.66,227.32,227.3,20.8]
[1759976943333,5.72103659,227.31,227.25,4.40031904]
[1759976943516,0.66,227.37,227.26,11.58647521]
[1759976943832,5.72103659,227.37,227.28,20.8]
[1759976944145,5.06103659,227.32,227.25,4.40031904]
[1759976944346,5.06103659,227.31,227.26,20.8]
[1759976944509,5.06103659,227.31,227.27,0.71]
[1759976944833,5.06103659,227.31,227.26,20.8]
[1759976945129,5.72103659,227.31,227.26,25.20020431]
[1759976946233,5.76103659,227.3,227.22,10.87647521]
[1759976946433,0.7,227.34,227.23,0.72]
[1759976946634,0.7,227.34,227.26,10.87647521]
[1759976946836,5.06103659,227.33,227.26,11.59647521]
[1759976947010,5.06103659,227.33,227.25,20.8]
[1759976947214,5.06103659,227.32,227.26,4.40024641]
[1759976947837,0.7,227.34,227.26,4.40024641]
[1759976948135,5.76103659,227.34,227.26,4.40024641]
[1759976948934,5.06103659,227.31,227.24,0.72]
[1759976949134,5.06103659,227.28,227.21,5.12121473]
[1759976949433,5.06103659,227.36,227.2,11.00318954]
[1759976949434,5.06103659,227.25,227.2,10.87647521]
[1759976949633,5.76103659,227.24,227.17,15.99839738]
[1759976949825,5.06103659,227.23,227.17,15.27839738]
[1759976950032,5.06103659,227.28,227.18,32.39647521]
[1759976950340,0.7,227.31,227.21,20.8]
[1759976950523,0.7,227.31,227.22,0.72]
[1759976950724,10.16036197,227.31,227.22,0.72]
[1759976950941,0.7,227.35,227.26,20.8]
[1759976951239,31.58,227.35,227.28,4.3998592]
[1759976951416,5.06103659,227.39,227.29,0.72]
[1759976951622,9.45882269,227.39,227.29,0.72]
[1759976951824,0.7,227.41,227.32,10.87647521]
[1759976952037,5.76103659,227.41,227.32,11.59647521]
[1759976952214,0.7,227.41,227.32,11.59647521]
[1759976952415,31.58,227.42,227.35,20.8]
[1759976952621,0.7,227.44,227.35,21.52]
[1759976953231,5.09676617,227.44,227.36,4.39831104]
[1759976953431,10.15481799,227.44,227.37,5.05805182]
[1759976953634,5.75805182,227.44,227.37,5.05805182]
[1759976954629,5.05805182,227.43,227.36,4.39831104]
[1759976954830,5.05805182,227.43,227.36,9.45636286]
[1759976955231,5.05805182,227.43,227.36,4.39831104]
[1759976955442,5.05805182,227.43,227.36,9.45636286]
[1759976955636,5.75805182,227.44,227.37,5.05805182]
[1759976955840,31.58,227.45,227.38,5.77805182]
[1759976956033,36.63805182,227.45,227.38,5.77805182]
[1759976956663,5.05805182,227.45,227.39,20.8]
[1759976956845,31.56,227.46,227.4,5.05805182]
[1759976957152,31.56,227.49,227.41,5.05805182]
[1759976957452,35.95594657,227.49,227.42,4.39715064]
[1759976957628,5.05805182,227.48,227.42,4.39715064]
[1759976957954,31.56,227.49,227.43,25.85805182]
[1759976958133,0.7,227.53,227.47,5.05805182]
[1759976958449,29.48227793,227.57,227.48,5.05805182]
[1759976958450,36.61805182,227.55,227.48,5.05805182]
[1759976959625,41.0127461,227.55,227.48,9.45399428]
[1759976959832,5.05805182,227.53,227.46,5.77805182]
[1759976960236,36.59805182,227.54,227.47,25.85805182]
[1759976960646,36.59805182,227.54,227.47,20.8]
[1759976960647,5.05805182,227.51,227.47,20.8]
[1759976960826,0.7,227.5,227.42,20.8]
[1759976961027,5.05805182,227.5,227.43,5.77805182]
[1759976961341,5.05805182,227.5,227.44,15.93452703]
[1759976961542,5.05805182,227.51,227.44,15.93452703]
[1759976961857,5.05805182,227.48,227.43,25.19692171]
[1759976962034,5.05805182,227.49,227.44,0.72]
[1759976962352,5.05805182,227.49,227.43,25.19690672]
[1759976962353,0.7,227.49,227.43,25.19690672]
[1759976962537,5.05805182,227.49,227.44,0.72]
[1759976962737,5.05805182,227.49,227.45,0.72]
[1759976962950,5.05805182,227.49,227.43,25.19690672]
[1759976963152,5.05805182,227.49,227.43,20.8]
[1759976963461,5.05805182,227.48,227.43,20.8]
[1759976963759,5.05805182,227.48,227.43,25.91693425]
[1759976964959,5.05805182,227.49,227.43,25.91693425]
[1759976965127,5.09550725,227.51,227.44,5.05805182]
[1759976965128,5.05805182,227.51,227.44,5.05805182]
[1759976965331,5.05805182,227.51,227.44,16.65452703]
[1759976966261,5.05805182,227.48,227.31,41.99629127]
[1759976966431,5.05805182,227.43,227.38,0.72]
[1759976966633,5.05805182,227.42,227.36,10.87647521]
[1759976966932,5.05805182,227.42,227.38,0.72]
[1759976967143,5.05805182,227.42,227.39,4.39773077]
[1759976967550,5.05805182,227.4,227.36,20.8]
[1759976967746,5.05805182,227.38,227.32,10.87647521]
[1759976967942,5.05805182,227.38,227.35,20.8]
[1759976968143,5.05805182,227.39,227.35,20.8]
[1759976968667,5.06047851,227.4,227.35,0.72]
[1759976968866,5.06047851,227.4,227.36,0.72]
[1759976969566,5.06047851,227.4,227.35,25.19834443]
[1759976969862,5.06047851,227.4,227.35,25.91834443]
[1759976970876,5.06047851,227.4,227.36,5.11826759]
[1759976971471,5.06047851,227.41,227.36,5.11826759]
[1759976972955,5.06047851,227.41,227.36,4.39826759]
[1759976973164,5.09697416,227.43,227.37,5.1180799]
[1759976973348,31.54,227.44,227.37,5.1180799]
[1759976973542,5.06047851,227.42,227.37,25.1980799]
[1759976973855,31.54,227.44,227.34,0.72]
[1759976973856,5.06047851,227.39,227.34,0.72]
[1759976974253,5.06047851,227.37,227.3,0.72]
[1759976974559,5.06047851,227.34,227.27,0.72]
[1759976974740,5.76047851,227.36,227.27,0.72]
[1759976974933,5.06047851,227.36,227.28,10.87647521]
[1759976975134,5.06047851,227.36,227.29,0.72]
[1759976975556,5.06047851,227.36,227.3,4.39947206]
[1759976976146,0.72,227.43,227.33,20.8]
[1759976976351,5.06047851,227.41,227.34,0.69]
[1759976976746,5.06047851,227.39,227.33,20.8]
[1759976976946,5.06047851,227.38,227.33,20.8]
[1759976977153,5.78047851,227.38,227.33,20.8]
[1759976977354,0.72,227.38,227.34,4.39869798]
[1759976978052,5.06047851,227.35,227.31,25.19918263]
[1759976978263,0.72,227.34,227.27,11.68985741]
[1759976978466,5.06047851,227.33,227.28,4.3998592]
[1759976978666,5.06047851,227.32,227.27,5.09002647]
[1759976978840,5.06047851,227.32,227.24,22.56799084]
[1759976979042,5.06047851,227.31,227.24,11.69151563]
[1759976979240,5.06047851,227.31,227.21,10.87647521]
[1759976979241,5.06047851,227.29,227.22,10.87647521]
[1759976979442,5.06047851,227.29,227.22,15.27749624]
[1759976979866,5.06047851,227.3,227.23,0.69]
[1759976980044,5.06047851,227.3,227.25,20.8]
[1759976980656,5.78047851,227.29,227.25,20.8]
[1759976980858,5.06047851,227.3,227.25,20.8]
[1759976981952,5.06047851,227.29,227.25,25.20038326]
[1759976982152,5.06047851,227.29,227.25,25.89038326]
[1759976982349,5.06047851,227.29,227.25,20.8]
[1759976982672,5.06047851,227.29,227.19,21.88027858]
[1759976982673,5.06047851,227.28,227.22,21.49]
[1759976983175,5.06047851,227.28,227.22,25.89101665]
[1759976983474,5.06047851,227.26,227.2,4.40121582]
[1759976983653,5.06047851,227.25,227.2,4.40121582]
[1759976983848,9.46095595,227.25,227.2,4.40121582]
[1759976984046,5.74047851,227.24,227.18,4.40163886]
[1759976984267,5.06047851,227.22,227.16,4.40218274]
[1759976984572,5.06047851,227.21,227.16,4.40218274]
[1759976984775,5.06047851,227.21,227.18,20.8]
[1759976985075,5.06047851,227.23,227.18,20.8]
[1759976985249,5.06047851,227.22,227.18,20.8]
[1759976985650,5.74047851,227.21,227.16,4.40216811]
[1759976986067,5.06047851,227.2,227.14,0.2]
[1759976986259,5.06047851,227.2,227.14,4.60248689]
[1759976986455,5.06047851,227.21,227.15,0.66]
[1759976986770,5.06047851,227.21,227.14,4.60248689]
[1759976986771,5.06047851,227.16,227.14,0.2]
[1759976987169,32.18,227.21,227.14,0.2]
[1759976987170,5.06047851,227.15,227.14,0.2]
[1759976987351,5.74047851,227.15,227.14,0.2]
[1759976987673,10.14285579,227.15,227.14,0.2]
[1759976991756,4.40140845,227.2,227.14,0.2]
[1759976991964,5.06047851,227.15,227.14,0.2]
[1759976992777,31.5,227.17,227.14,0.86]
[1759976993071,31.5,227.17,227.15,0.66]
[1759976993254,5.06047851,227.2,227.15,0.66]
[1759976993450,31.5,227.19,227.15,0.66]
[1759976993665,36.56047851,227.19,227.15,0.66]
[1759976994064,31.5,227.19,227.15,0.66]
[1759976994271,31.5,227.19,227.14,4.60254842]
[1759976994483,36.56047851,227.19,227.14,4.60254842]
[1759976994678,5.06047851,227.18,227.14,4.60254842]
[1759976995469,36.54047851,227.18,227.14,4.60254842]
[1759976995671,5.06047851,227.18,227.14,5.26254842]
[1759976995871,36.54047851,227.18,227.14,5.26254842]
[1759976996870,5.06047851,227.18,227.14,5.26254842]
[1759976997070,31.48,227.17,227.14,5.26254842]
[1759976998659,31.48,227.17,227.14,0.2]
[1759976998660,35.63460754,227.17,227.14,0.2]
[1759976998870,3.47460754,227.18,227.14,0.86]
[1759976999065,31.48,227.18,227.15,0.66]
[1759976999673,31.48,227.18,227.14,4.60248726]
[1759976999872,0.68,227.26,227.15,0.66]
[1759977000084,34.97460754,227.25,227.17,20.8]
[1759977000284,3.47460754,227.21,227.14,0.86]
[1759977000472,3.47460754,227.16,227.14,0.2]
[1759977000794,34.97460754,227.16,227.14,0.2]
[1759977000977,0.5,227.16,227.15,0.66]
[1759977001297,0.5,227.16,227.14,0.2]
[1759977001592,3.97460754,227.16,227.14,0.2]
[1759977001792,31.54,227.15,227.14,0.2]
[1759977002091,0.5,227.16,227.15,0.66]
[1759977002568,0.5,227.16,227.14,0.2]
[1759977002569,0.5,227.16,227.14,4.60254676]
[1759977002886,0.5,227.16,227.15,0.66]
[1759977003765,0.5,227.16,227.14,0.2]
[1759977003968,4.65460754,227.16,227.14,0.2]
[1759977004171,0.68,227.15,227.14,0.2]
[1759977004371,4.15460754,227.15,227.14,0.2]
[1759977005879,8.55698482,227.15,227.14,0.2]
[1759977006077,3.47460754,227.15,227.14,0.2]
[1759977006277,4.90218765,227.16,227.14,0.2]
[1759977006278,3.97460754,227.16,227.14,0.2]
[1759977006881,0.66,227.15,227.14,0.2]
[1759977007086,32.2,227.15,227.14,0.2]
[1759977007390,36.60237728,227.15,227.14,0.2]
[1759977007697,31.54,227.15,227.14,0.2]
[1759977007886,32.2,227.15,227.14,0.2]
[1759977008698,31.54,227.15,227.14,0.2]
[1759977009596,35.94237728,227.15,227.14,0.2]
[1759977009788,36.60237728,227.15,227.14,0.2]
[1759977010601,3.97460754,227.16,227.14,0.2]
[1759977010778,0.5,227.16,227.14,5.29255871]
[1759977010977,0.5,227.16,227.15,0.69]
[1759977011498,0.5,227.16,227.15,5.09237728]
[1759977011878,0.5,227.16,227.15,15.96885249]
[1759977012180,0.5,227.16,227.15,5.09237728]
[1759977012584,0.66,227.29,227.15,5.09237728]
[1759977012776,154.29999999,227.33,227.17,10.87647521]
[1759977012777,3.47460754,227.27,227.17,10.87647521]
[1759977013086,31.6,227.26,227.2,20.8]
[1759977013286,31.6,227.26,227.21,0.69]
[1759977013489,31.6,227.26,227.22,0.69]
[1759977013683,31.6,227.26,227.23,0.69]
[1759977014581,31.6,227.26,227.22,4.40087474]
[1759977014781,31.58,227.25,227.23,0.69]
[1759977015188,31.58,227.25,227.17,10.87647521]
[1759977015189,35.05460754,227.25,227.18,0.69]
[1759977015486,3.47460754,227.21,227.18,0.69]
[1759977015699,31.56,227.2,227.19,0.69]
[1759977016194,35.96145561,227.2,227.04,39.69673238]
[1759977016397,31.56,227.2,227.15,0.69]
[1759977016900,137.77460754,227.26,227.18,10.87647521]
[1759977017199,31.6,227.25,227.19,0.69]
[1759977017582,31.6,227.25,227.2,4.40140845]
[1759977017780,31.6,227.25,227.21,0.69]
[1759977018191,31.6,227.25,227.22,0.69]
[1759977018507,31.6,227.25,227.23,0.69]
[1759977019902,31.6,227.25,227.24,0.69]
[1759977020686,3.47460754,227.29,227.24,0.69]
[1759977020687,0.66,227.35,227.24,0.69]
[1759977020900,3.47460754,227.31,227.24,0.69]
[1759977021110,31.58,227.3,227.24,0.69]
[1759977021297,31.58,227.3,227.25,4.40044004]
[1759977021509,31.58,227.3,227.28,20.8]
[1759977021801,31.58,227.32,227.29,0.69]
[1759977022006,35.05460754,227.33,227.29,0.69]
[1759977022192,35.05460754,227.33,227.26,10.87647521]
[1759977022193,31.58,227.33,227.26,10.87647521]
[1759977022389,31.58,227.33,227.29,0.69]
[1759977022593,31.58,227.33,227.3,0.69]
[1759977023204,31.58,227.33,227.3,5.08928188]
[1759977023397,5.0581176,227.37,227.3,5.08928188]
[1759977023602,3.47460754,227.34,227.3,5.08928188]
[1759977023805,3.47460754,227.32,227.26,10.87647521]
[1759977024004,3.47460754,227.3,227.26,10.87647521]
[1759977024312,3.47460754,227.3,227.26,11.56647521]
[1759977024899,3.47460754,227.3,227.26,15.96670487]
[1759977025093,3.47460754,227.3,227.26,5.09022966]
[1759977025294,4.13460754,227.3,227.26,4.40022966]
[1759977025511,3.47460754,227.3,227.26,5.09022966]
[1759977026406,3.47460754,227.28,227.26,20.8]
[1759977026605,4.13460754,227.28,227.22,4.40086031]
[1759977026823,3.47460754,227.26,227.22,4.40086031]
[1759977027119,3.47460754,227.24,227.2,10.87647521]
[1759977027434,3.47460754,227.24,227.2,11.56647521]
[1759977027595,3.47460754,227.22,227.2,20.8]
[1759977027798,31.56,227.27,227.21,11.56647521]
[1759977028119,31.56,227.29,227.24,20.8]
[1759977028418,4.13460754,227.28,227.22,20.8]
[1759977028792,31.56,227.29,227.23,11.56647521]
[1759977029120,31.56,227.29,227.25,10.87647521]
[1759977029293,31.56,227.29,227.26,0.69]
[1759977029497,31.56,227.29,227.25,0.69]
[1759977029694,31.56,227.29,227.26,0.69]
[1759977030098,31.56,227.29,227.25,10.87647521]
[1759977030315,31.56,227.29,227.25,11.56647521]
[1759977030516,31.56,227.29,227.26,0.69]
[1759977031311,31.56,227.29,227.26,5.09011395]
[1759977033298,31.56,227.29,227.27,0.69]
[1759977033498,4.3981176,227.37,227.28,0.69]
[1759977033807,0.66,227.37,227.28,0.69]
[1759977034013,31.58,227.36,227.28,0.69]
[1759977034225,0.66,227.41,227.31,10.87647521]
[1759977034411,3.47460754,227.39,227.31,10.87647521]
[1759977034723,31.58,227.4,227.33,10.87647521]
[1759977034924,31.58,227.4,227.35,10.87647521]
[1759977035124,31.58,227.4,227.36,0.69]
[1759977035426,31.58,227.4,227.37,4.3981176]
[1759977035641,31.58,227.4,227.37,5.0881176]
[1759977036436,31.58,227.4,227.37,4.3981176]
[1759977036633,31.58,227.4,227.36,20.8]
[1759977036634,3.47460754,227.39,227.36,20.8]
[1759977037142,35.05460754,227.4,227.36,20.8]
[1759977037838,31.58,227.4,227.37,0.68]
[1759977038721,31.58,227.4,227.38,4.39792417]
[1759977039036,31.58,227.4,227.38,5.07792417]
[1759977039748,20.8,227.5,227.39,10.87647521]
[1759977039965,3.47460754,227.47,227.41,10.87647521]
[1759977040941,3.47460754,227.47,227.42,4.39715064]
[1759977041245,35.03460754,227.47,227.42,5.07715064]
[1759977041418,31.56,227.47,227.42,5.07715064]
[1759977041841,32.22,227.47,227.41,10.87647521]
[1759977042043,35.69460754,227.47,227.41,15.27377216]
[1759977042239,40.09079326,227.47,227.41,10.87647521]
[1759977042425,40.09079326,227.47,227.41,15.27371623]
[1759977042729,3.47460754,227.45,227.41,15.27371623]
[1759977042935,4.13460754,227.45,227.41,15.27371623]
[1759977043353,3.47460754,227.45,227.41,15.27371623]
[1759977043814,31.56,227.47,227.41,15.27371623]
[1759977044347,3.47460754,227.46,227.41,15.27371623]
[1759977044522,3.47460754,227.46,227.41,15.95371623]
[1759977045647,4.17460754,227.46,227.41,15.27371623]
[1759977045817,1.30724567,227.46,227.41,15.27371623]
[1759977046017,1.30724567,227.46,227.41,15.95371623]
[1759977047852,1.30724567,227.46,227.41,11.55647521]
[1759977048032,1.30724567,227.46,227.41,15.95379827]
[1759977048627,31.56,227.47,227.42,0.68]
[1759977048831,1.30724567,227.46,227.43,0.68]
[1759977049442,31.56,227.47,227.44,0.68]
[1759977049827,31.56,227.47,227.43,4.39683515]
[1759977050126,31.56,227.47,227.43,5.07683515]
[1759977050715,31.56,227.47,227.42,4.39715064]
[1759977050943,31.56,227.47,227.44,0.68]
[1759977051446,31.48,227.49,227.44,0.68]
[1759977051950,31.48,227.49,227.42,4.39715064]
[1759977051951,31.48,227.49,227.45,0.68]